fUST/lending_fUST_20240814
["ID","MTS","AMOUNT","RATE_DAILY","PERIOD"]
[334890799,1723627858130,-266.71520934,0.00015342,2]
[334890800,1723627858140,-1079.49,0.00015342,2]
[334890801,1723627858150,-1167.87,0.00015342,2]
[334890802,1723627858160,-797.83,0.00015342,2]
[334890803,1723627858169,-500.0,0.00015342,2]
[334890804,1723627858179,-992.23,0.00015342,2]
[334890805,1723627858189,-500.0,0.00015342,2]
[334890806,1723627858198,-500.0,0.00015342,2]
[334890807,1723627858207,-639.2,0.00015342,2]
[334890808,1723627858217,-500.0,0.00015342,2]
[334890809,1723627858226,-500.0,0.00015342,2]
[334890810,1723627858235,-500.0,0.00015342,2]
[334890811,1723627858244,-915.37,0.00015342,2]
[334890812,1723627858253,-908.61,0.00015342,2]
[334890813,1723627858262,-500.0,0.00015342,2]
[334890814,1723627858272,-500.0,0.00015342,2]
[334890815,1723627858281,-500.0,0.00015342,2]
[334890816,1723627858290,-617.36,0.00015342,2]
[334890817,1723627858300,-500.0,0.00015342,2]
[334890818,1723627858310,-500.0,0.00015342,2]
[334890819,1723627858320,-500.0,0.00015342,2]
[334890820,1723627858330,-500.0,0.00015342,2]
[334890821,1723627858340,-500.0,0.00015342,2]
[334890822,1723627858350,-508.20831117,0.00015342,2]
[334890823,1723627858359,-500.0,0.00015342,2]
[334890824,1723627858369,-5983.7,0.00015342,2]
[334890825,1723627858378,-2701.05,0.00015342,2]
[334890826,1723627858387,-500.0,0.00015342,2]
[334890827,1723627858397,-497.72614126,0.00015342,2]
[334890828,1723627858407,-905.61,0.00015342,2]
[334890829,1723627858416,-1032.89,0.00015342,2]
[334890830,1723627858425,-1566.9,0.00015342,2]
[334890831,1723627858435,-500.0,0.00015342,2]
[334890832,1723627858445,-500.0,0.00015342,2]
[334890833,1723627858454,-853.18,0.00015342,2]
[334890834,1723627858553,-575.98,0.00015342,2]
[334890835,1723627858563,-521.84,0.00015342,2]
[334890836,1723627858573,-567.6,0.00015342,2]
[334890837,1723627858583,-625.85146069,0.00015342,2]
[334890838,1723627858592,-651.84,0.00015342,2]
[334890839,1723627858601,-500.0,0.00015342,2]
[334890840,1723627858610,-630.08,0.00015342,2]
[334890841,1723627858619,-500.0,0.00015342,2]
[334890842,1723627858629,-501.51844714,0.00015342,2]
[334890843,1723627858639,-575.68,0.00015342,2]
[334890844,1723627858648,-500.0,0.00015342,2]
[334890845,1723627858657,-544.59,0.00015342,2]
[334890846,1723627858668,-13942.21,0.00015342,2]
[334890847,1723627858677,-500.0,0.00015342,2]
[334890848,1723627858687,-500.0,0.00015342,2]
[334890849,1723627858696,-464.35632835,0.00015342,2]
[334890850,1723627858705,-400.0,0.00015342,2]
[334890851,1723627858714,-400.17755878,0.00015342,2]
[334890852,1723627858725,-151.0,0.00015467,2]
[334890853,1723627858734,-602.0,0.000156,2]
[334890854,1723627858743,-500.0,0.00015616,2]
[334890855,1723627858753,-784.93,0.00015616,2]
[334890856,1723627858762,-500.0,0.00015616,2]
[334890857,1723627858771,-500.0,0.00015616,2]
[334890858,1723627858781,-611.98,0.00015616,2]
[334890859,1723627858792,-561.51,0.00015616,2]
[334890860,1723627858801,-500.0,0.00015616,2]
[334890861,1723627858817,-1014.19,0.00015616,2]
[334890862,1723627858826,-500.0,0.00015616,2]
[334890863,1723627858836,-693.95,0.00015616,2]
[334890864,1723627858848,-500.0,0.00015616,2]
[334890865,1723627858859,-500.0,0.00015616,2]
[334890866,1723627858869,-500.0,0.00015616,2]
[334890867,1723627858878,-500.0,0.00015616,2]
[334890868,1723627858889,-500.0,0.00015616,2]
[334890869,1723627858898,-500.0,0.00015616,2]
[334890870,1723627858908,-500.0,0.00015616,2]
[334890871,1723627858918,-562.6,0.00015616,2]
[334890872,1723627858928,-500.0,0.00015616,2]
[334890873,1723627858938,-500.0,0.00015616,2]
[334890874,1723627858947,-500.0,0.00015616,2]
[334890875,1723627858956,-2358.64,0.00015616,2]
[334890876,1723627858967,-500.0,0.00015616,2]
[334890877,1723627858976,-834.05,0.00015616,2]
[334890878,1723627858985,-759.51,0.00015616,2]
[334890879,1723627858995,-925.56,0.00015616,2]
[334890880,1723627859005,-864.82,0.00015616,2]
[334890881,1723627859015,-500.0,0.00015616,2]
[334890882,1723627859025,-568.31,0.00015616,2]
[334890883,1723627859034,-822.07,0.00015616,2]
[334890884,1723627859043,-1032.84,0.00015616,2]
[334890885,1723627859053,-500.0,0.00015616,2]
[334890886,1723627859064,-969.54,0.00015616,2]
[334890887,1723627859073,-500.0,0.00015616,2]
[334890888,1723627859084,-3616.69,0.00015616,2]
[334890889,1723627859093,-161.58,0.00015616,2]
[334890890,1723627859103,-500.0,0.00015616,2]
[334890891,1723627859112,-831.63,0.00015616,2]
[334890892,1723627859122,-803.68,0.00015616,2]
[334890893,1723627859131,-528.59,0.00015616,2]
[334890894,1723627859140,-418.54207589,0.00015616,2]
[334890895,1723627859150,-5260.85,0.00015616,2]
[334890896,1723627859162,-706.1,0.00015616,2]
[334890897,1723627859171,-597.87,0.00015616,2]
[334890898,1723627859181,-1594.01,0.00015616,2]
[334890899,1723627859191,-1079.49,0.00015616,2]
[334890900,1723627859200,-1167.87,0.00015616,2]
[334890901,1723627859210,-797.83,0.00015616,2]
[334890902,1723627859219,-500.0,0.00015616,2]
[334890903,1723627859228,-992.23,0.00015616,2]
[334890904,1723627859238,-500.0,0.00015616,2]
[334890905,1723627859247,-500.0,0.00015616,2]
[334890906,1723627859256,-639.2,0.00015616,2]
[334890907,1723627859265,-500.0,0.00015616,2]
[334890908,1723627859275,-500.0,0.00015616,2]
[334890909,1723627859285,-500.0,0.00015616,2]
[334890910,1723627859294,-915.37,0.00015616,2]
[334890911,1723627859303,-908.61,0.00015616,2]
[334890912,1723627859314,-500.0,0.00015616,2]
[334890913,1723627859324,-323.83288378,0.00015616,2]
[334890914,1723627859333,-500.0,0.00015616,2]
[334890915,1723627859342,-617.36,0.00015616,2]
[334890916,1723627859352,-500.0,0.00015616,2]
[334890917,1723627859362,-245.66986889,0.00015616,2]
[334890918,1723627859371,-500.0,0.00015616,2]
[334890919,1723627859380,-500.0,0.00015616,2]
[334890920,1723627859390,-500.0,0.00015616,2]
[334890921,1723627859399,-500.0,0.00015616,2]
[334890922,1723627859408,-5983.7,0.00015616,2]
[334890923,1723627859417,-2701.05,0.00015616,2]
[334890924,1723627859427,-500.0,0.00015616,2]
[334890925,1723627859436,-905.61,0.00015616,2]
[334890926,1723627859445,-1032.89,0.00015616,2]
[334890927,1723627859454,-1566.9,0.00015616,2]
[334890928,1723627859465,-638.56117203,0.00015616,2]
[334890929,1723627859474,-500.0,0.00015616,2]
[334890930,1723627859483,-853.18,0.00015616,2]
[334890931,1723627859492,-575.98,0.00015616,2]
[334890932,1723627859502,-521.84,0.00015616,2]
[334890933,1723627859511,-567.6,0.00015616,2]
[334890934,1723627859521,-651.84,0.00015616,2]
[334890935,1723627859530,-500.0,0.00015616,2]
[334890936,1723627859539,-630.08,0.00015616,2]
[334890937,1723627859549,-500.0,0.00015616,2]
[334890938,1723627859558,-575.68,0.00015616,2]
[334890939,1723627859569,-626.3859621,0.00015616,2]
[334890940,1723627859578,-544.59,0.00015616,2]
[334890941,1723627859587,-13942.21,0.00015616,2]
[334890942,1723627859597,-500.0,0.00015616,2]
[334890943,1723627859606,-500.0,0.00015616,2]
[334890944,1723627859615,-1520.30640025,0.00015694,2]
[334890945,1723627859625,-160.0,0.0001583,2]
[334890946,1723627859635,-500.0,0.0001589,2]
[334890947,1723627859644,-784.93,0.0001589,2]
[334890948,1723627859653,-500.0,0.0001589,2]
[334890949,1723627859662,-500.0,0.0001589,2]
[334890950,1723627859672,-611.98,0.0001589,2]
[334890951,1723627859681,-561.51,0.0001589,2]
[334890952,1723627859690,-500.0,0.0001589,2]
[334890953,1723627859700,-1014.19,0.0001589,2]
[334890954,1723627859709,-500.0,0.0001589,2]
[334890955,1723627859719,-693.95,0.0001589,2]
[334890956,1723627859729,-500.0,0.0001589,2]
[334890957,1723627859740,-500.0,0.0001589,2]
[334890958,1723627859750,-500.0,0.0001589,2]
[334890959,1723627859761,-500.0,0.0001589,2]
[334890960,1723627859771,-500.0,0.0001589,2]
[334890961,1723627859782,-500.0,0.0001589,2]
[334890962,1723627859792,-500.0,0.0001589,2]
[334890963,1723627859804,-562.6,0.0001589,2]
[334890964,1723627859816,-500.0,0.0001589,2]
[334890965,1723627859827,-500.0,0.0001589,2]
[334890966,1723627859836,-500.0,0.0001589,2]
[334890967,1723627859846,-2358.64,0.0001589,2]
[334890968,1723627859856,-500.0,0.0001589,2]
[334890969,1723627859865,-834.05,0.0001589,2]
[334890970,1723627859877,-759.51,0.0001589,2]
[334890971,1723627859888,-925.56,0.0001589,2]
[334890972,1723627859901,-864.82,0.0001589,2]
[334890973,1723627859910,-500.0,0.0001589,2]
[334890974,1723627859920,-568.31,0.0001589,2]
[334890975,1723627859930,-822.07,0.0001589,2]
[334890976,1723627859939,-1032.84,0.0001589,2]
[334890977,1723627859948,-500.0,0.0001589,2]
[334890978,1723627859957,-969.54,0.0001589,2]
[334890979,1723627859967,-500.0,0.0001589,2]
[334890980,1723627859976,-3616.69,0.0001589,2]
[334890981,1723627859989,-500.0,0.0001589,2]
[334890982,1723627860000,-831.63,0.0001589,2]
[334890983,1723627860010,-803.68,0.0001589,2]
[334890984,1723627860020,-528.59,0.0001589,2]
[334890985,1723627860031,-5260.85,0.0001589,2]
[334890986,1723627860040,-706.1,0.0001589,2]
[334890987,1723627860050,-597.87,0.0001589,2]
[334890988,1723627860060,-1594.01,0.0001589,2]
[334890989,1723627860072,-1079.49,0.0001589,2]
[334890990,1723627860082,-1167.87,0.0001589,2]
[334890991,1723627860093,-797.83,0.0001589,2]
[334890992,1723627860102,-500.0,0.0001589,2]
[334890993,1723627860112,-992.23,0.0001589,2]
[334890994,1723627860122,-500.0,0.0001589,2]
[334890995,1723627860132,-500.0,0.0001589,2]
[334890996,1723627860141,-639.2,0.0001589,2]
[334890997,1723627860152,-500.0,0.0001589,2]
[334890998,1723627860162,-500.0,0.0001589,2]
[334890999,1723627860172,-500.0,0.0001589,2]
[334891000,1723627860182,-915.37,0.0001589,2]
[334891001,1723627860192,-908.61,0.0001589,2]
[334891002,1723627860203,-500.0,0.0001589,2]
[334891003,1723627860214,-500.0,0.0001589,2]
[334891004,1723627860223,-617.36,0.0001589,2]
[334891005,1723627860233,-500.0,0.0001589,2]
[334891006,1723627860243,-500.0,0.0001589,2]
[334891007,1723627860253,-287.15968847,0.0001589,2]
[334891008,1723627860263,-507.4392915,0.0001589,2]
[334891009,1723627860273,-500.0,0.0001589,2]
[334891010,1723627860283,-5983.7,0.0001589,2]
[334891011,1723627860293,-2701.05,0.0001589,2]
[334891012,1723627860305,-500.0,0.0001589,2]
[334891013,1723627860318,-905.61,0.0001589,2]
[334891014,1723627860331,-1032.89,0.0001589,2]
[334891015,1723627860342,-1566.9,0.0001589,2]
[334891016,1723627860352,-500.0,0.0001589,2]
[334891017,1723627860363,-853.18,0.0001589,2]
[334891018,1723627860374,-575.98,0.0001589,2]
[334891019,1723627860384,-521.84,0.0001589,2]
[334891020,1723627860395,-567.6,0.0001589,2]
[334891021,1723627860406,-500.0,0.0001589,2]
[334891022,1723627860416,-651.84,0.0001589,2]
[334891023,1723627860426,-630.08,0.0001589,2]
[334891024,1723627860436,-500.0,0.0001589,2]
[334891025,1723627860446,-575.68,0.0001589,2]
[334891026,1723627860456,-544.59,0.0001589,2]
[334891027,1723627860550,-196.577417,0.0001589,2]
[334891028,1723627860560,-13942.21,0.0001589,2]
[334891029,1723627860570,-500.0,0.0001589,2]
[334891030,1723627860580,-196.577417,0.0001589,2]
[334891031,1723627860590,-500.0,0.0001589,2]
[334891032,1723627860599,-7739.0,0.00016,2]
[334891033,1723627860608,-3000.0,0.00016,2]
[334891034,1723627860618,-1729.069544,0.00016,2]
[334891035,1723627860627,-3000.0,0.0001601,2]
[334891036,1723627860637,-3000.0,0.0001602,2]
[334891037,1723627860647,-3000.0,0.0001603,2]
[334891038,1723627860657,-3000.0,0.0001604,2]
[334891039,1723627860666,-3000.0,0.0001605,2]
[334891040,1723627860676,-3000.0,0.0001606,2]
[334891041,1723627860685,-3000.0,0.0001607,2]
[334891042,1723627860695,-3000.0,0.0001608,2]
[334891043,1723627860704,-3000.0,0.0001609,2]
[334891044,1723627860714,-3000.0,0.000161,2]
[334891045,1723627860723,-3000.0,0.0001611,2]
[334891046,1723627860733,-3000.0,0.0001612,2]
[334891047,1723627860743,-153.876601,0.0001612,2]
[334891048,1723627860753,-162.949912,0.0001612,2]
[334891049,1723627860768,-162.949912,0.0001612,2]
[334891050,1723627860784,-1440.243406,0.0001612,2]
[334891051,1723627860794,-1440.243406,0.0001612,2]
[334891052,1723627860804,-3000.0,0.0001613,2]
[334891053,1723627860818,-3000.0,0.0001614,2]
[334891054,1723627860828,-3000.0,0.0001615,2]
[334891055,1723627860838,-3000.0,0.0001616,2]
[334891056,1723627860849,-500.0,0.00016164,2]
[334891057,1723627860859,-784.93,0.00016164,2]
[334891058,1723627860869,-493.36816833,0.00016164,2]
[334891059,1723627860879,-500.0,0.00016164,2]
[334891060,1723627860890,-611.98,0.00016164,2]
[334891061,1723627860901,-561.51,0.00016164,2]
[334891062,1723627860911,-500.0,0.00016164,2]
[334891063,1723627860921,-1014.19,0.00016164,2]
[334891064,1723627860932,-500.0,0.00016164,2]
[334891065,1723627860942,-693.95,0.00016164,2]
[334891066,1723627860952,-500.0,0.00016164,2]
[334891067,1723627860961,-500.0,0.00016164,2]
[334891068,1723627860971,-500.0,0.00016164,2]
[334891069,1723627860982,-500.0,0.00016164,2]
[334891070,1723627860991,-500.0,0.00016164,2]
[334891071,1723627861001,-500.0,0.00016164,2]
[334891072,1723627861011,-562.6,0.00016164,2]
[334891073,1723627861020,-500.0,0.00016164,2]
[334891074,1723627861031,-500.0,0.00016164,2]
[334891075,1723627861041,-583.12966411,0.00016164,2]
[334891076,1723627861051,-2358.64,0.00016164,2]
[334891077,1723627861061,-500.0,0.00016164,2]
[334891078,1723627861072,-834.05,0.00016164,2]
[334891079,1723627861082,-759.51,0.00016164,2]
[334891080,1723627861092,-925.56,0.00016164,2]
[334891081,1723627861102,-864.82,0.00016164,2]
[334891082,1723627861112,-500.0,0.00016164,2]
[334891083,1723627861121,-568.31,0.00016164,2]
[334891084,1723627861131,-822.07,0.00016164,2]
[334891085,1723627861141,-1032.84,0.00016164,2]
[334891086,1723627861151,-500.0,0.00016164,2]
[334891087,1723627861160,-969.54,0.00016164,2]
[334891088,1723627861170,-500.0,0.00016164,2]
[334891089,1723627861180,-3616.69,0.00016164,2]
[334891090,1723627861190,-500.0,0.00016164,2]
[334891091,1723627861200,-831.63,0.00016164,2]
[334891092,1723627861209,-803.68,0.00016164,2]
[334891093,1723627861219,-528.59,0.00016164,2]
[334891094,1723627861230,-5260.85,0.00016164,2]
[334891095,1723627861239,-706.1,0.00016164,2]
[334891096,1723627861249,-597.87,0.00016164,2]
[334891097,1723627861258,-1594.01,0.00016164,2]
[334891098,1723627861269,-1079.49,0.00016164,2]
[334891099,1723627861278,-1167.87,0.00016164,2]
[334891100,1723627861288,-797.83,0.00016164,2]
[334891101,1723627861298,-500.0,0.00016164,2]
[334891102,1723627861310,-992.23,0.00016164,2]
[334891103,1723627861320,-500.0,0.00016164,2]
[334891104,1723627861330,-500.0,0.00016164,2]
[334891105,1723627861340,-639.2,0.00016164,2]
[334891106,1723627861349,-257.84705382,0.00016164,2]
[334891107,1723627861359,-500.0,0.00016164,2]
[334891108,1723627861368,-500.0,0.00016164,2]
[334891109,1723627861379,-915.37,0.00016164,2]
[334891110,1723627861389,-908.61,0.00016164,2]
[334891111,1723627861399,-500.0,0.00016164,2]
[334891112,1723627861408,-506.95612343,0.00016164,2]
[334891113,1723627861419,-617.36,0.00016164,2]
[334891114,1723627861429,-500.0,0.00016164,2]
[334891115,1723627861445,-500.0,0.00016164,2]
[334891116,1723627861467,-500.0,0.00016164,2]
[334891117,1723627861483,-5983.7,0.00016164,2]
[334891118,1723627861499,-2701.05,0.00016164,2]
[334891119,1723627861517,-500.0,0.00016164,2]
[334891120,1723627861535,-905.61,0.00016164,2]
[334891121,1723627861552,-1032.89,0.00016164,2]
[334891122,1723627861565,-1566.9,0.00016164,2]
[334891123,1723627861579,-500.0,0.00016164,2]
[334891124,1723627861599,-853.18,0.00016164,2]
[334891125,1723627861613,-575.98,0.00016164,2]
[334891126,1723627861630,-521.84,0.00016164,2]
[334891127,1723627861647,-567.6,0.00016164,2]
[334891128,1723627861661,-219.43136535,0.00016164,2]
[334891129,1723627861676,-651.84,0.00016164,2]
[334891130,1723627861693,-630.08,0.00016164,2]
[334891131,1723627861711,-500.0,0.00016164,2]
[334891132,1723627861726,-575.68,0.00016164,2]
[334891133,1723627861743,-544.59,0.00016164,2]
[334891134,1723627861761,-13942.21,0.00016164,2]
[334891135,1723627861773,-500.0,0.00016164,2]
[334891136,1723627861786,-500.0,0.00016164,2]
[334891137,1723627861804,-3000.0,0.0001617,2]
[334891138,1723627861824,-3000.0,0.0001618,2]
[334891139,1723627861837,-3000.0,0.0001619,2]
[334891140,1723627861853,-1000.0,0.00016195,2]
[334891141,1723627861866,-3000.0,0.000162,2]
[334891142,1723627861877,-1000.0,0.00016205,2]
[334891143,1723627861893,-3000.0,0.0001621,2]
[334891144,1723627861908,-3000.0,0.0001622,2]
[334891145,1723627861925,-4523.690663,0.0001623,2]
[334891146,1723627861942,-500.0,0.00016438,2]
[334891147,1723627861957,-200.0,0.00016438,2]
[334891148,1723627861971,-200.0,0.00016438,2]
[334891149,1723627861985,-200.0,0.00016438,2]
[334891150,1723627862001,-200.0,0.00016438,2]
[334891151,1723627862016,-200.0,0.00016438,2]
[334891152,1723627862032,-200.0,0.00016438,2]
[334891153,1723627862045,-200.0,0.00016438,2]
[334891154,1723627862058,-200.0,0.00016438,2]
[334891155,1723627862073,-241.58586052,0.00016438,2]
[334891156,1723627862085,-784.93,0.00016438,2]
[334891157,1723627862098,-500.0,0.00016438,2]
[334891158,1723627862111,-611.98,0.00016438,2]
[334891159,1723627862124,-561.51,0.00016438,2]
[334891160,1723627862136,-500.0,0.00016438,2]
[334891161,1723627862149,-1014.19,0.00016438,2]
[334891162,1723627862162,-500.0,0.00016438,2]
[334891163,1723627862174,-693.95,0.00016438,2]
[334891164,1723627862186,-320.0131782,0.00016438,2]
[334891165,1723627862199,-500.0,0.00016438,2]
[334891166,1723627862211,-500.0,0.00016438,2]
[334891167,1723627862223,-500.0,0.00016438,2]
[334891168,1723627862236,-500.0,0.00016438,2]
[334891169,1723627862249,-500.0,0.00016438,2]
[334891170,1723627862261,-562.6,0.00016438,2]
[334891171,1723627862274,-500.0,0.00016438,2]
[334891172,1723627862285,-500.0,0.00016438,2]
[334891173,1723627862295,-2358.64,0.00016438,2]
[334891174,1723627862304,-558.60293494,0.00016438,2]
[334891175,1723627862315,-834.05,0.00016438,2]
[334891176,1723627862324,-759.51,0.00016438,2]
[334891177,1723627862335,-925.56,0.00016438,2]
[334891178,1723627862345,-864.82,0.00016438,2]
[334891179,1723627862355,-500.0,0.00016438,2]
[334891180,1723627862364,-568.31,0.00016438,2]
[334891181,1723627862374,-822.07,0.00016438,2]
[334891182,1723627862384,-1032.84,0.00016438,2]
[334891183,1723627862395,-500.0,0.00016438,2]
[334891184,1723627862405,-969.54,0.00016438,2]
[334891185,1723627862414,-500.0,0.00016438,2]
[334891186,1723627862424,-3616.69,0.00016438,2]
[334891187,1723627862436,-500.0,0.00016438,2]
[334891188,1723627862447,-831.63,0.00016438,2]
[334891189,1723627862457,-803.68,0.00016438,2]
[334891190,1723627862467,-528.59,0.00016438,2]
[334891191,1723627862477,-5260.85,0.00016438,2]
[334891192,1723627862487,-706.1,0.00016438,2]
[334891193,1723627862498,-597.87,0.00016438,2]
[334891194,1723627862507,-1594.01,0.00016438,2]
[334891195,1723627862517,-1079.49,0.00016438,2]
[334891196,1723627862527,-1167.87,0.00016438,2]
[334891197,1723627862537,-797.83,0.00016438,2]
[334891198,1723627862546,-500.0,0.00016438,2]
[334891199,1723627862556,-992.23,0.00016438,2]
[334891200,1723627862567,-500.0,0.00016438,2]
[334891201,1723627862577,-500.0,0.00016438,2]
[334891202,1723627862589,-639.2,0.00016438,2]
[334891203,1723627862739,-500.0,0.00016438,2]
[334891204,1723627862805,-500.0,0.00016438,2]
[334891205,1723627862821,-915.37,0.00016438,2]
[334891206,1723627862831,-908.61,0.00016438,2]
[334891207,1723627862841,-500.0,0.00016438,2]
[334891208,1723627862851,-617.36,0.00016438,2]
[334891209,1723627862860,-500.0,0.00016438,2]
[334891210,1723627862870,-500.0,0.00016438,2]
[334891211,1723627862880,-500.0,0.00016438,2]
[334891212,1723627862890,-5983.7,0.00016438,2]
[334891213,1723627862903,-2701.05,0.00016438,2]
[334891214,1723627862913,-500.0,0.00016438,2]
[334891215,1723627862923,-905.61,0.00016438,2]
[334891216,1723627862933,-1032.89,0.00016438,2]
[334891217,1723627862943,-1566.9,0.00016438,2]
[334891218,1723627862953,-500.0,0.00016438,2]
[334891219,1723627862963,-853.18,0.00016438,2]
[334891220,1723627862973,-575.98,0.00016438,2]
[334891221,1723627862983,-521.84,0.00016438,2]
[334891222,1723627862994,-567.6,0.00016438,2]
[334891223,1723627863003,-651.84,0.00016438,2]
[334891224,1723627863014,-630.08,0.00016438,2]
[334891225,1723627863025,-500.0,0.00016438,2]
[334891226,1723627863035,-575.68,0.00016438,2]
[334891227,1723627863045,-544.59,0.00016438,2]
[334891228,1723627863055,-13942.21,0.00016438,2]
[334891229,1723627863064,-500.0,0.00016438,2]
[334891230,1723627863075,-151.0,0.00016438,2]
[334891231,1723627863085,-151.0,0.00016438,2]
[334891232,1723627863095,-154.77557542,0.00016441,2]
[334891233,1723627863106,-500.0,0.00016451,2]
[334891234,1723627863116,-500.0,0.00016451,2]
[334891235,1723627863125,-863.91,0.000165,2]
[334891236,1723627863135,-151.0,0.000165,2]
[334891237,1723627863145,-151.0,0.000165,2]
[334891238,1723627863154,-419.711122,0.000165,2]
[334891239,1723627863164,-151.0,0.000165,2]
[334891240,1723627863175,-419.711122,0.000165,2]
[334891241,1723627863184,-2330.30258,0.000165,2]
[334891242,1723627863195,-2330.30258,0.000165,2]
[334891243,1723627863205,-151.0,0.000165,2]
[334891244,1723627863215,-151.0,0.000165,2]
[334891245,1723627863226,-133174.34,0.000165,2]
[334891246,1723627863236,-1000.0,0.000165,2]
[334891247,1723627863246,-447.42741236,0.00016712,2]
[334891248,1723627863256,-784.93,0.00016712,2]
[334891249,1723627863266,-328.13665836,0.00016712,2]
[334891250,1723627863276,-611.98,0.00016712,2]
[334891251,1723627863287,-561.51,0.00016712,2]
[334891252,1723627863296,-500.0,0.00016712,2]
[334891253,1723627863307,-1014.19,0.00016712,2]
[334891254,1723627863319,-500.0,0.00016712,2]
[334891255,1723627863328,-693.95,0.00016712,2]
[334891256,1723627863338,-500.0,0.00016712,2]
[334891257,1723627863348,-500.0,0.00016712,2]
[334891258,1723627863358,-500.0,0.00016712,2]
[334891259,1723627863368,-500.0,0.00016712,2]
[334891260,1723627863378,-500.0,0.00016712,2]
[334891261,1723627863389,-562.6,0.00016712,2]
[334891262,1723627863398,-500.0,0.00016712,2]
[334891263,1723627863409,-500.0,0.00016712,2]
[334891264,1723627863419,-847.72534042,0.00016712,2]
[334891265,1723627863539,-1510.91465958,0.00016712,2]
[334891266,1723627863549,-834.05,0.00016712,2]
[334891267,1723627863558,-759.51,0.00016712,2]
[334891268,1723627863569,-925.56,0.00016712,2]
[334891269,1723627863579,-864.82,0.00016712,2]
[334891270,1723627863589,-500.0,0.00016712,2]
[334891271,1723627863599,-568.31,0.00016712,2]
[334891272,1723627863609,-822.07,0.00016712,2]
[334891273,1723627863619,-1032.84,0.00016712,2]
[334891274,1723627863628,-164.02794803,0.00016712,2]
[334891275,1723627863638,-151.0,0.00016712,2]
[334891276,1723627863648,-969.54,0.00016712,2]
[334891277,1723627863658,-500.0,0.00016712,2]
[334891278,1723627863668,-3616.69,0.00016712,2]
[334891279,1723627863678,-151.0,0.00016712,2]
[334891280,1723627863689,-2030.173717,0.00016712,2]
[334891281,1723627863699,-287.99120999,0.00016712,2]
[334891282,1723627863709,-2030.173717,0.00016712,2]
[334891283,1723627863719,-831.63,0.00016712,2]
[334891284,1723627863729,-803.68,0.00016712,2]
[334891285,1723627863739,-151.0,0.00016712,2]
[334891286,1723627863750,-528.59,0.00016712,2]
[334891287,1723627863759,-151.0,0.00016712,2]
[334891288,1723627863770,-5260.85,0.00016712,2]
[334891289,1723627863779,-706.1,0.00016712,2]
[334891290,1723627863789,-597.87,0.00016712,2]
[334891291,1723627863799,-1594.01,0.00016712,2]
[334891292,1723627863809,-1079.49,0.00016712,2]
[334891293,1723627863824,-1167.87,0.00016712,2]
[334891294,1723627863834,-300.772827,0.00016712,2]
[334891295,1723627863844,-797.83,0.00016712,2]
[334891296,1723627863855,-1613.64212,0.00016712,2]
[334891297,1723627863865,-500.0,0.00016712,2]
[334891298,1723627863876,-992.23,0.00016712,2]